[Event "GCT Superbet Blitz Poland 2025"]
[Site "Warsaw"]
[Date "2025.04.30"]
[Round "12"]
[White "Topalov, Veselin"]
[Black "Vachier-Lagrave, Maxime"]
[Result "0-1"]
[ECO "E60"]
[WhiteElo "2717"]
[BlackElo "2722"]
[Annotator "ChessBase"]
[PlyCount "110"]
[EventDate "2025.??.??"]
[EventType "blitz"]
[TimeControl "300+2"]

1. d4 {[%emt 0:00:03]} Nf6 {[%emt 0:00:01]} 2. c4 {[%emt 0:00:01]} g6 {[%emt 0:00:02]} 3. Nf3 {[%emt 0:00:01]} Bg7 {[%emt 0:00:01]} 4. e3 {[%emt 0:00:01]} O-O {[%emt 0:00:07]} 5. h3 {[%emt 0:00:01]} b6 {[%emt 0:00:07]} ({RR} 5... c5 6. d5 e6 7. Nc3 d6 8. Bd3 Na6 9. O-O Nc7 10. e4 b5 11. cxb5 exd5 12. exd5 a6 13. bxa6 Bxa6 14. Re1 Qd7 15. Bg5 Rfb8 16. Bxa6 Rxa6 17. Qd2 Nb5 18. Bh6 Bxh6 19. Qxh6 Nd4 20. Ng5 {Salem,A (2638)-Vaishali,R (2488) Biel SUI 2024 1-0 (107)}) 6. Be2 {[%emt 0:00:21]} Bb7 {[%emt 0:00:02]} 7. O-O {[%emt 0:00:04]} e6 {[%emt 0:00:03]} 8. Nc3 $146 {[%emt 0:00:02]} ({RR} 8. b4 d5 9. Nbd2 Nbd7 10. Bb2 c5 11. dxc5 bxc5 12. b5 a6 13. a4 axb5 14. axb5 Ne8 15. Qc2 Nd6 16. Rxa8 Bxa8 17. Bxg7 Kxg7 18. Ra1 Bb7 19. cxd5 exd5 20. Nb3 Qb6 21. Na5 Ra8 22. Qb2+ f6 {Yu Yangyi (2720)-Kuybokarov,T (2584) Douglas IOM 2023 ½-½ (65)}) ({RR} 8. b4 d5 9. Nbd2 Nbd7 10. Bb2 c5 11. dxc5 bxc5 12. b5 a6 13. a4 axb5 14. axb5 Ne8 15. Qc2 Nd6 16. Rxa8 Bxa8 17. Bxg7 Kxg7 18. Ra1 Bb7 19. cxd5 exd5 20. Nb3 Qb6 21. Na5 Ra8 22. Qb2+ f6 {Yu Yangyi (2720)-Kuybokarov,T (2584) Douglas IOM 2023 ½-½ (65)}) 8... d5 {[%emt 0:00:02]} 9. cxd5 {[%emt 0:00:05]} Nxd5 {[%emt 0:00:02]} 10. Bd2 {[%emt 0:00:10]} Nd7 {[%emt 0:00:03]} 11. Nxd5 {[%emt 0:00:11]} Bxd5 {[%emt 0:00:01]} 12. Bc3 {[%emt 0:00:09]} c5 {[%emt 0:00:04]} 13. Rc1 {[%emt 0:00:08]} Rc8 {[%emt 0:00:20]} 14. Qa4 {[%emt 0:00:16]} a5 {[%emt 0:00:03]} 15. Rfd1 {[%emt 0:00:02]} Rc7 {[%emt 0:00:15]} 16. Qa3 {[%emt 0:00:07]} Qa8 {[%emt 0:00:08]} 17. dxc5 {[%emt 0:00:17]} Bxc3 {[%emt 0:00:03]} 18. Rxc3 {[%emt 0:00:26]} Nxc5 {[%emt 0:00:07]} 19. b4 {[%emt 0:00:43]} axb4 {[%emt 0:00:01]} 20. Qxb4 {[%emt 0:00:01]} Rfc8 {[%emt 0:00:01]} 21. Ra3 {[%emt 0:00:34]} Ra7 {[%emt 0:00:02]} 22. Rxa7 {[%emt 0:00:00]} Qxa7 {[%emt 0:00:01]} 23. a3 {[%emt 0:00:01]} Ne4 {[%emt 0:00:10]} 24. Bf1 {[%emt 0:00:18]} Nc3 {[%emt 0:00:10]} 25. Rd3 {[%emt 0:00:04]} Qa5 {[%emt 0:00:16]} 26. Nd4 {[%emt 0:00:06]} Qxb4 {[%emt 0:00:04]} 27. axb4 {[%emt 0:00:01]} Na2 {[%emt 0:00:03]} 28. Rd2 {[%emt 0:00:32]} Nxb4 {[%emt 0:00:59]} 29. Rb2 {[%emt 0:00:00]} Nc6 {[%emt 0:00:02]} 30. Rxb6 {[%emt 0:00:01]} Nxd4 {[%emt 0:00:01]} 31. exd4 {[%emt 0:00:01]} Rc1 {[%emt 0:00:01]} 32. Rb4 {[%emt 0:00:01]} Be4 {[%emt 0:00:01]} 33. Rb3 {[%emt 0:00:01]} Rd1 {[%emt 0:00:01]} 34. f3 {[%emt 0:00:03]} Bc2 {[%emt 0:00:07]} 35. Rc3 {[%emt 0:00:12]} Ba4 {[%emt 0:00:06]} 36. Kf2 {[%emt 0:00:25]} Rxd4 {[%emt 0:00:01]} 37. g3 {[%emt 0:00:06]} g5 {[%emt 0:00:14]} 38. Rc4 {[%emt 0:00:13]} Rd2+ {[%emt 0:00:01]} 39. Ke3 {[%emt 0:00:01]} Ra2 {[%emt 0:00:01]} 40. h4 {[%emt 0:00:01]} gxh4 {[%emt 0:00:16]} 41. Rxh4 {[%emt 0:00:01]} Ra3+ {[%emt 0:00:06]} 42. Kf2 {[%emt 0:00:02]} Bc2 {[%emt 0:00:01]} 43. Rc4 {[%emt 0:00:10]} Bg6 {[%emt 0:00:09]} 44. Be2 {[%emt 0:00:04]} Kg7 {[%emt 0:00:03]} 45. g4 {[%emt 0:00:01]} h5 {[%emt 0:00:09]} 46. gxh5 {[%emt 0:00:01]} Bxh5 {[%emt 0:00:01]} 47. Rh4 {[%emt 0:00:05]} Bg6 {[%emt 0:00:05]} 48. Rb4 {[%emt 0:00:01]} e5 {[%emt 0:00:08]} 49. Rb6 {[%emt 0:00:10]} Kh6 {[%emt 0:00:11]} 50. Bc4 {[%emt 0:00:09]} Kg5 {[%emt 0:00:02]} 51. Bd5 {[%emt 0:00:02]} Ra5 {[%emt 0:00:09]} 52. Rd6 {[%emt 0:00:05]} f5 {[%emt 0:00:10]} 53. Be6 {[%emt 0:00:04]} Kf4 {[%emt 0:00:09]} 54. Rb6 {[%emt 0:00:02]} Bh5 {[%emt 0:00:14]} 55. Rb4+ {[%emt 0:00:02]} Kg5 {[%emt 0:00:01]} 0-1

[Event "GCT Superbet Blitz Poland 2025"]
[Site "Warsaw"]
[Date "2025.04.30"]
[Round "12"]
[White "Gavrilescu, David"]
[Black "Aronian, Levon"]
[Result "0-1"]
[ECO "B51"]
[WhiteElo "2554"]
[BlackElo "2747"]
[Annotator "ChessBase"]
[PlyCount "76"]
[EventDate "2025.??.??"]
[EventType "blitz"]
[TimeControl "300+2"]

1. e4 {[%emt 0:00:02]} c5 {[%emt 0:00:01]} 2. Nf3 {[%emt 0:00:02]} d6 {[%emt 0:00:00]} 3. Bb5+ {[%emt 0:00:02]} Nd7 {[%emt 0:00:02]} 4. O-O {[%emt 0:00:03]} a6 {[%emt 0:00:01]} 5. Bxd7+ {[%emt 0:00:03]} Bxd7 {[%emt 0:00:01]} 6. c3 {[%emt 0:00:02]} Nf6 {[%emt 0:00:04]} 7. Re1 {[%emt 0:00:02]} e6 {[%emt 0:00:02]} 8. d4 {[%emt 0:00:02]} Be7 {[%emt 0:00:03]} 9. e5 {[%emt 0:00:11]} dxe5 {[%emt 0:00:04]} 10. dxe5 {[%emt 0:00:02]} Nd5 {[%emt 0:00:06]} 11. c4 {[%emt 0:00:02]} Nb6 {[%emt 0:00:11]} 12. Qe2 {[%emt 0:00:13]} Bc6 {[%emt 0:00:01]} 13. b3 {[%emt 0:00:19]} Nd7 {[%emt 0:00:47]} ({RR} 13... O-O 14. Nc3 Qc7 15. Ne4 Rfd8 16. Bb2 Nd7 17. Qe3 Nf8 18. Nf6+ Bxf6 19. exf6 Ng6 20. fxg7 Qf4 21. Ne5 Qxe3 22. Rxe3 Nxe5 23. Bxe5 Rd2 24. a4 Rad8 25. Rae1 Rd1 26. h4 Rxe1+ 27. Rxe1 h5 28. f3 {Matlakov,M (2662)-Yu Yangyi (2729) chess.com INT 2023 1-0}) ({RR} 13... Qc7 14. Bf4 Nd7 15. Nc3 O-O 16. Rad1 Rad8 17. Ne4 Bxe4 18. Qxe4 Nb8 19. Bg5 Nc6 20. h4 h6 21. Bxe7 Qxe7 22. h5 Rxd1 23. Rxd1 Rd8 24. Rd3 Rxd3 25. Qxd3 Qc7 26. Qe3 Qa5 27. a4 Qb4 28. Qd3 {Shevchenko,Y (2092)-Mattenberger,M (2338) chess.com INT 2025 0-1 (31)}) 14. Nc3 {[%emt 0:00:12]} g5 $146 {[%emt 0:00:09]} ({RR} 14... Qc7 15. Bf4 g5 16. Nxg5 Rg8 17. Qh5 O-O-O 18. Nce4 Rg7 19. Nxf7 Bxe4 20. Rxe4 Rf8 21. Ng5 Qc6 22. Rae1 Rxf4 23. Rxf4 Rxg5 24. Qe8+ Bd8 25. f3 Nxe5 26. Qxc6+ Nxc6 27. Rxe6 Nd4 28. Re8 Kd7 29. Rh8 {Mirimanian,H (2288)-Gokerkan,C (2512) chess.com INT 2024 0-1 (43)}) ({RR} 14... Qc7 15. Bf4 g5 16. Nxg5 Rg8 17. Qh5 O-O-O 18. Nce4 Rg7 19. Nxf7 Bxe4 20. Rxe4 Rf8 21. Ng5 Qc6 22. Rae1 Rxf4 23. Rxf4 Rxg5 24. Qe8+ Bd8 25. f3 Nxe5 26. Qxc6+ Nxc6 27. Rxe6 Nd4 28. Re8 Kd7 29. Rh8 {Mirimanian,H (2288)-Gokerkan,C (2512) chess.com INT 2024 0-1 (43)}) ({RR} 14... Qc7 15. Bf4 g5 16. Nxg5 Rg8 17. Qh5 O-O-O 18. Nce4 Rg7 19. Nxf7 Bxe4 20. Rxe4 Rf8 21. Ng5 Qc6 22. Rae1 Rxf4 23. Rxf4 Rxg5 24. Qe8+ Bd8 25. f3 Nxe5 26. Qxc6+ Nxc6 27. Rxe6 Nd4 28. Re8 Kd7 29. Rh8 {Mirimanian,H (2288)-Gokerkan,C (2512) chess.com INT 2024 0-1 (43)}) 15. Bb2 {[%emt 0:00:24]} g4 {[%emt 0:00:45]} 16. Nd2 {[%emt 0:00:02]} Qb6 {[%emt 0:00:03]} 17. Nd5 {[%emt 0:00:14]} Qd8 {[%emt 0:00:33]} 18. Qxg4 {[%emt 0:00:41]} exd5 {[%emt 0:00:25]} 19. e6 {[%emt 0:00:06]} d4 {[%emt 0:00:01]} 20. Qg7 {[%emt 0:00:50]} Rf8 {[%emt 0:00:05]} 21. exd7+ {[%emt 0:00:11]} Kxd7 {[%emt 0:00:08]} 22. Ne4 {[%emt 0:00:37]} Kc7 {[%emt 0:00:42]} 23. b4 {[%emt 0:00:19]} Rg8 {[%emt 0:00:44]} 24. Qxf7 {[%emt 0:00:11]} Qf8 {[%emt 0:00:11]} 25. Qxf8 {[%emt 0:00:28]} Raxf8 {[%emt 0:00:02]} 26. g3 {[%emt 0:00:02]} cxb4 {[%emt 0:00:26]} 27. Bxd4 {[%emt 0:00:02]} Rf5 {[%emt 0:00:01]} 28. Rad1 {[%emt 0:00:17]} a5 {[%emt 0:00:03]} 29. f4 {[%emt 0:00:05]} a4 {[%emt 0:00:01]} 30. Be5+ {[%emt 0:00:05]} Kb6 {[%emt 0:00:00]} 31. Nd6 {[%emt 0:00:05]} Bxd6 {[%emt 0:00:05]} 32. Bxd6 {[%emt 0:00:01]} Ka5 {[%emt 0:00:05]} 33. Rb1 {[%emt 0:00:02]} Rf6 {[%emt 0:00:09]} 34. Bxb4+ {[%emt 0:00:02]} Ka6 {[%emt 0:00:01]} 35. Bc3 {[%emt 0:00:02]} Rxf4 {[%emt 0:00:01]} 36. c5 {[%emt 0:00:04]} Rc4 {[%emt 0:00:01]} 37. Bb4 {[%emt 0:00:02]} Rc2 {[%emt 0:00:01]} 38. Rbc1 {[%emt 0:00:06]} Rg2+ {[%emt 0:00:02]} 0-1

[Event "GCT Superbet Blitz Poland 2025"]
[Site "Warsaw"]
[Date "2025.04.30"]
[Round "13"]
[White "Firouzja, Alireza"]
[Black "Gavrilescu, David"]
[Result "0-1"]
[ECO "B92"]
[WhiteElo "2757"]
[BlackElo "2554"]
[Annotator "ChessBase"]
[PlyCount "72"]
[EventDate "2025.??.??"]
[EventType "blitz"]
[TimeControl "300+2"]

1. e4 {[%emt 0:00:00]} c5 {[%emt 0:00:01]} 2. Nf3 {[%emt 0:00:02]} d6 {[%emt 0:00:01]} 3. d4 {[%emt 0:00:01]} cxd4 {[%emt 0:00:02]} 4. Nxd4 {[%emt 0:00:00]} Nf6 {[%emt 0:00:01]} 5. Nc3 {[%emt 0:00:01]} a6 {[%emt 0:00:01]} 6. Be2 {[%emt 0:00:08]} e5 {[%emt 0:00:02]} 7. Nb3 {[%emt 0:00:01]} Be7 {[%emt 0:00:02]} 8. Be3 {[%emt 0:00:03]} Be6 {[%emt 0:00:02]} 9. Qd3 {[%emt 0:00:07]} Nbd7 {[%emt 0:00:11]} 10. Nd5 {[%emt 0:00:12]} Bxd5 {[%emt 0:00:04]} 11. exd5 {[%emt 0:00:01]} Rc8 {[%emt 0:00:01]} 12. c4 {[%emt 0:00:26]} O-O {[%emt 0:00:03]} 13. O-O {[%emt 0:00:03]} a5 {[%emt 0:00:01]} 14. Rae1 {[%emt 0:00:07]} ({RR} 14. Nd2 Nc5 15. Qc2 Nfd7 16. Bg4 g6 17. Bxd7 Nxd7 18. Qb3 f5 19. f3 Bg5 20. f4 exf4 21. Bxf4 Nc5 22. Qg3 Bxf4 23. Qxf4 Qf6 24. b3 g5 25. Qf2 Rce8 26. Rad1 g4 27. Nb1 f4 28. Qd4 Qg5 {Anand,V (2794)-Shirov,A (2722) Leon 2001 1-0 (56)}) ({RR} 14. a4 b6 15. h3 g6 16. Bh6 Re8 17. Rac1 Bf8 18. Bg5 h6 19. Be3 Bg7 20. Bg4 Nxg4 21. hxg4 e4 22. Qe2 Ne5 23. Bd4 Qh4 24. Rc3 Qxg4 25. Qxg4 Nxg4 26. Bxg7 Kxg7 27. Re1 f5 28. Nd4 Ne5 {Willems,N (2406)-Gavrilescu,D (2549) Eforie Nord ROU 2025 0-1 (44)}) 14... g6 {[%emt 0:00:06]} 15. Kh1 {[%emt 0:00:22]} Ne8 {[%emt 0:00:07]} 16. f4 $146 {[%emt 0:00:27]} ({RR} 16. Qd2 a4 17. Na5 Qc7 18. b4 axb3 19. axb3 Ng7 20. Bd3 Nb8 21. Qb4 Na6 22. Qb5 Nc5 23. Bc2 f5 24. f4 exf4 25. Bxf4 Bf6 26. b4 Ne4 27. Bxe4 fxe4 28. c5 Nf5 29. Qxb7 Qxb7 30. Nxb7 Bc3 {Roser,K (2369)-Rozen,E (2508) Karlsruhe GER 2025 ½-½ (58)}) 16... a4 {[%emt 0:00:06]} 17. Nd2 {[%emt 0:00:04]} f5 {[%emt 0:00:20]} 18. Qa3 {[%emt 0:00:28]} Nef6 {[%emt 0:00:33]} 19. Qxa4 {[%emt 0:00:21]} Nc5 {[%emt 0:01:10]} 20. Qc2 {[%emt 0:00:39]} Nce4 {[%emt 0:00:27]} 21. Nxe4 {[%emt 0:00:06]} Nxe4 {[%emt 0:00:02]} 22. Bf3 {[%emt 0:00:18]} b5 {[%emt 0:00:03]} 23. b3 {[%emt 0:00:12]} bxc4 {[%emt 0:00:11]} 24. bxc4 {[%emt 0:00:02]} exf4 {[%emt 0:00:08]} 25. Bxf4 {[%emt 0:00:06]} Nc5 {[%emt 0:00:03]} 26. Bh6 {[%emt 0:00:22]} Rf7 {[%emt 0:00:11]} 27. Qd2 {[%emt 0:00:07]} Bf6 {[%emt 0:00:11]} 28. g4 {[%emt 0:00:25]} Bh4 {[%emt 0:00:19]} 29. Rb1 {[%emt 0:00:19]} g5 {[%emt 0:00:15]} 30. gxf5 {[%emt 0:00:24]} Qf6 {[%emt 0:00:01]} 31. Bh5 {[%emt 0:00:02]} Re7 {[%emt 0:00:08]} 32. Qd1 {[%emt 0:00:05]} Ne4 {[%emt 0:00:05]} 33. Bg6 {[%emt 0:00:04]} hxg6 {[%emt 0:00:06]} 34. Qg4 {[%emt 0:00:01]} Rce8 {[%emt 0:00:25]} 35. fxg6 {[%emt 0:00:03]} Nf2+ {[%emt 0:00:04]} 36. Rxf2 {[%emt 0:00:02]} Re1+ {[%emt 0:00:02]} 0-1

[Event "GCT Superbet Blitz Poland 2025"]
[Site "Warsaw"]
[Date "2025.04.30"]
[Round "13"]
[White "Aronian, Levon"]
[Black "Deac, Bogdan-Daniel"]
[Result "1/2-1/2"]
[ECO "D35"]
[WhiteElo "2747"]
[BlackElo "2668"]
[Annotator "ChessBase"]
[PlyCount "125"]
[EventDate "2025.??.??"]
[EventType "blitz"]
[TimeControl "300+2"]

1. c4 {[%emt 0:00:01]} e6 {[%emt 0:00:03]} 2. Nc3 {[%emt 0:00:02]} d5 {[%emt 0:00:01]} 3. d4 {[%emt 0:00:02]} Nf6 {[%emt 0:00:02]} 4. cxd5 {[%emt 0:00:01]} exd5 {[%emt 0:00:05]} 5. Bg5 {[%emt 0:00:01]} Be7 {[%emt 0:00:05]} 6. e3 {[%emt 0:00:02]} h6 {[%emt 0:00:01]} 7. Bh4 {[%emt 0:00:01]} Bg4 {[%emt 0:00:02]} 8. Nf3 {[%emt 0:00:16]} ({RR} 8. f3 Be6 9. Bd3 c5 10. Nge2 Nc6 11. dxc5 Bxc5 12. Bf2 O-O 13. O-O Ne5 14. Nf4 a6 15. Rc1 Rc8 16. Kh1 b5 17. b3 Qb6 18. Qe2 Ba3 19. Rc2 Qa5 20. Nb1 Nxd3 21. Qxd3 Rxc2 22. Qxc2 Rc8 {Puranik,A (2634)-Deac,B (2683) chess.com INT 2024 0-1 (74)}) 8... c6 {[%emt 0:00:07]} 9. h3 $146 {[%emt 0:00:16]} ({RR} 9. Qc2 Nbd7 10. Bd3 O-O 11. h3 Bxf3 12. gxf3 Rc8 13. O-O-O c5 14. Bf5 b5 15. Kb1 cxd4 16. Rxd4 b4 17. Bxf6 {½-½ (17) Henriquez Villagra,C (2594)-Sokolovsky,Y (2516) Sant Boi ESP 2024}) ({RR} 9. Bd3 O-O 10. O-O Ne4 11. Bxe7 Qxe7 12. Be2 Nd7 13. Ne1 Bxe2 14. Qxe2 a5 15. Qc2 h5 16. Nd3 h4 17. h3 Rfe8 18. Rfe1 Qg5 19. Rab1 Nd6 20. a4 Qf5 21. Rec1 Nb6 22. b3 Re7 23. Qd1 g5 {Praggnanandhaa,R (2690)-Eljanov,P (2694) Budapest HUN 2023 ½-½ (54)}) ({RR} 9. Bd3 Nbd7 10. h3 Bxf3 11. Qxf3 O-O 12. O-O Re8 13. Rab1 a5 14. Bg3 Nf8 15. Be5 N6d7 16. Bh2 Nb6 17. Ne2 Bd6 18. Ng3 g6 19. Rfe1 Ne6 20. Qg4 Ng7 21. Kh1 Qd7 22. Nh5 Qxg4 23. Nf6+ Kh8 {Moussard,J (2599)-Di Benedetto,E (2411) chess.com INT 2025 0-1 (129)}) ({RR} 9. Bd3 Ne4 10. Bxe7 Qxe7 11. Qc2 Nxc3 12. bxc3 Nd7 13. O-O O-O 14. Nd2 c5 15. Rae1 Rac8 16. f4 Nb6 17. h3 Bd7 18. Qd1 Na4 19. f5 f6 20. e4 Nxc3 21. exd5 Qd6 22. Qg4 b5 23. Rf3 Qxd5 {Kolesnikov,E (2362)-Nogerbek,K (2480) Moscow RUS 2024 0-1 (57)}) ({RR} 9. Qc2 Nbd7 10. h3 Bh5 11. Bd3 Nf8 12. g4 Bg6 13. O-O-O Bxd3 14. Qxd3 N6d7 15. Bg3 Ne6 16. h4 Bb4 17. Ne2 Nf6 18. Ne5 Bd6 19. f3 Qe7 20. h5 a5 21. Kb1 a4 22. Bh4 Qc7 23. Ng3 a3 {Daneshvar,B (2581)-Maghsoodloo,P (2732) Aktobe KAZ 2024 1-0 (58)}) 9... Bxf3 {[%emt 0:00:14]} 10. Qxf3 {[%emt 0:00:05]} Ne4 {[%emt 0:00:41]} 11. Bxe7 {[%emt 0:00:14]} Qxe7 {[%emt 0:00:01]} 12. Bd3 {[%emt 0:00:01]} Nd6 {[%emt 0:00:11]} 13. O-O-O {[%emt 0:00:20]} Nd7 {[%emt 0:00:19]} 14. Kb1 {[%emt 0:00:01]} O-O-O {[%emt 0:00:20]} 15. Qg3 {[%emt 0:00:02]} f5 {[%emt 0:01:47]} 16. f3 {[%emt 0:00:10]} Rhf8 {[%emt 0:00:29]} 17. Rhe1 {[%emt 0:00:11]} Nb6 {[%emt 0:00:41]} 18. e4 {[%emt 0:00:59]} fxe4 {[%emt 0:00:02]} 19. fxe4 {[%emt 0:00:01]} dxe4 {[%emt 0:00:01]} 20. Bxe4 {[%emt 0:00:01]} Qc7 {[%emt 0:00:15]} 21. Bc2 {[%emt 0:00:30]} Ndc4 {[%emt 0:00:10]} 22. Qd3 {[%emt 0:00:35]} Kb8 {[%emt 0:00:01]} 23. Ne4 {[%emt 0:00:03]} Rfe8 {[%emt 0:00:05]} 24. Bb3 {[%emt 0:00:06]} Na5 {[%emt 0:00:03]} 25. Bc2 {[%emt 0:00:01]} Nac4 {[%emt 0:00:01]} 26. Nc5 {[%emt 0:00:08]} Rxe1 {[%emt 0:00:02]} 27. Rxe1 {[%emt 0:00:01]} Qd6 {[%emt 0:00:01]} 28. Qc3 {[%emt 0:00:26]} Qxd4 {[%emt 0:00:03]} 29. Qxd4 {[%emt 0:00:12]} Rxd4 {[%emt 0:00:00]} 30. Re7 {[%emt 0:00:01]} Rd2 {[%emt 0:00:05]} 31. Rxb7+ {[%emt 0:00:03]} Ka8 {[%emt 0:00:01]} 32. Rxg7 {[%emt 0:00:03]} a5 {[%emt 0:00:01]} 33. Rg8+ {[%emt 0:00:31]} Ka7 {[%emt 0:00:01]} 34. Rg7+ {[%emt 0:00:01]} Ka8 {[%emt 0:00:01]} 35. Kc1 {[%emt 0:00:03]} Rf2 {[%emt 0:00:01]} 36. Bd3 {[%emt 0:00:09]} Nxb2 {[%emt 0:00:04]} 37. Be4 {[%emt 0:00:04]} Nd5 {[%emt 0:00:02]} 38. Rg6 {[%emt 0:00:03]} Nc4 {[%emt 0:00:04]} 39. Rxc6 {[%emt 0:00:02]} Nce3 {[%emt 0:00:03]} 40. Rxh6 {[%emt 0:00:13]} Ka7 {[%emt 0:00:02]} 41. Ra6+ {[%emt 0:00:05]} Kb8 {[%emt 0:00:01]} 42. Bxd5 {[%emt 0:00:06]} Nxd5 {[%emt 0:00:01]} 43. Rxa5 {[%emt 0:00:01]} Nc3 {[%emt 0:00:04]} 44. g4 {[%emt 0:00:04]} Nxa2+ {[%emt 0:00:03]} 45. Kd1 {[%emt 0:00:00]} Nc3+ {[%emt 0:00:02]} 46. Ke1 Rh2 {[%emt 0:00:00]} 47. g5 {[%emt 0:00:06]} Rxh3 {[%emt 0:00:02]} 48. Kf2 {[%emt 0:00:07]} Rh2+ {[%emt 0:00:03]} 49. Kg3 {[%emt 0:00:02]} Rh7 {[%emt 0:00:02]} 50. Kg4 {[%emt 0:00:03]} Rh1 {[%emt 0:00:01]} 51. Ra3 {[%emt 0:00:03]} Nd5 {[%emt 0:00:02]} 52. Rg3 {[%emt 0:00:01]} Kc7 {[%emt 0:00:02]} 53. g6 {[%emt 0:00:01]} Kd6 {[%emt 0:00:02]} 54. Ne4+ {[%emt 0:00:03]} Ke7 {[%emt 0:00:02]} 55. Kf5 {[%emt 0:00:01]} Kf8 {[%emt 0:00:03]} 56. g7+ {[%emt 0:00:05]} Kg8 {[%emt 0:00:00]} 57. Ke6 {[%emt 0:00:01]} Nf4+ {[%emt 0:00:02]} 58. Ke5 {[%emt 0:00:03]} Nh5 {[%emt 0:00:01]} 59. Rg5 {[%emt 0:00:02]} Nxg7 {[%emt 0:00:02]} 60. Nd6 {[%emt 0:00:01]} Rh5 {[%emt 0:00:01]} 61. Rxh5 {[%emt 0:00:02]} Nxh5 {[%emt 0:00:01]} 62. Nf5 {[%emt 0:00:01]} Ng7 {[%emt 0:00:01]} 63. Nxg7 {[%emt 0:00:00]} 1/2-1/2

[Event "GCT Superbet Blitz Poland 2025"]
[Site "Warsaw"]
[Date "2025.04.30"]
[Round "13"]
[White "Duda, Jan-Krzysztof"]
[Black "Aravindh, Chithambaram VR."]
[Result "1-0"]
[ECO "E12"]
[WhiteElo "2739"]
[BlackElo "2749"]
[Annotator "ChessBase"]
[PlyCount "59"]
[EventDate "2025.??.??"]
[EventType "blitz"]
[TimeControl "300+2"]

1. d4 {[%emt 0:00:01]} Nf6 {[%emt 0:00:02]} 2. Nf3 {[%emt 0:00:01]} b6 {[%emt 0:00:01]} 3. c4 {[%emt 0:00:03]} Bb7 {[%emt 0:00:02]} 4. Nc3 {[%emt 0:00:02]} e6 {[%emt 0:00:03]} 5. a3 {[%emt 0:00:05]} d5 {[%emt 0:00:11]} 6. cxd5 {[%emt 0:00:05]} Nxd5 {[%emt 0:00:07]} 7. Bd2 {[%emt 0:00:06]} Be7 {[%emt 0:00:03]} 8. Qc2 {[%emt 0:00:10]} O-O {[%emt 0:00:07]} 9. e4 {[%emt 0:00:13]} Nxc3 {[%emt 0:00:03]} 10. Bxc3 {[%emt 0:00:02]} c5 {[%emt 0:00:02]} 11. O-O-O {[%emt 0:00:06]} cxd4 {[%emt 0:00:09]} 12. Nxd4 {[%emt 0:00:03]} Qc7 {[%emt 0:00:21]} ({RR} 12... Qc8 13. h4 Nc6 14. Rh3 Nxd4 15. Rxd4 Bc5 16. Rd2 e5 17. Bxe5 Qe6 18. f4 Rfc8 19. Bc4 Be3 20. Bxe6 Bxd2+ 21. Kxd2 Rxc2+ 22. Kxc2 Bxe4+ 23. Kc3 fxe6 24. Rg3 g6 25. Kd4 Bf5 26. h5 Rd8+ 27. Kc4 {Voiteanu,G (2151)-Costescu,M (1944) Eforie Nord ROU 2024 1-0 (51)}) 13. f3 {[%emt 0:00:03]} a6 {[%emt 0:00:04]} 14. Kb1 {[%emt 0:00:42]} Nd7 $146 {[%emt 0:00:02]} ({RR} 14... Nc6 15. Be2 Rac8 16. Nxc6 Qxc6 17. Qb3 Bc5 18. Rc1 Qd6 19. g3 b5 20. Ba5 Bb6 21. Rcd1 Qc7 22. Rc1 Bc6 23. Bc3 Rfd8 24. Rhd1 Be3 25. Rxd8+ Rxd8 26. Rc2 Bg1 27. Be1 Qb7 28. Rc1 h6 29. Rd1 {Pert,N (2475)-Geirnaert,S Athens 2001 ½-½ (45)}) 15. Bb4 {[%emt 0:00:12]} Nc5 {[%emt 0:00:09]} 16. Nb3 {[%emt 0:00:03]} a5 {[%emt 0:00:40]} 17. Bxc5 {[%emt 0:00:18]} bxc5 {[%emt 0:00:06]} 18. Bb5 {[%emt 0:00:14]} Bc6 {[%emt 0:01:01]} 19. Bxc6 {[%emt 0:00:18]} Qxc6 {[%emt 0:00:02]} 20. e5 {[%emt 0:00:46]} c4 {[%emt 0:00:02]} 21. Rd4 {[%emt 0:00:07]} Qb5 {[%emt 0:00:45]} 22. Rxc4 {[%emt 0:00:05]} Qxe5 {[%emt 0:00:16]} 23. Nd4 {[%emt 0:00:02]} Bf6 {[%emt 0:00:03]} 24. Nc6 {[%emt 0:00:06]} Qb5 {[%emt 0:00:43]} 25. Rd1 {[%emt 0:00:05]} Bxb2 {[%emt 0:00:12]} 26. a4 {[%emt 0:00:01]} Qa6 {[%emt 0:00:31]} 27. Kxb2 {[%emt 0:00:03]} Rae8 {[%emt 0:00:01]} 28. Qb3 {[%emt 0:00:08]} h6 {[%emt 0:00:05]} 29. Rd7 {[%emt 0:00:03]} e5 {[%emt 0:00:03]} 30. Ra7 {[%emt 0:00:06]} 1-0

[Event "GCT Superbet Blitz Poland 2025"]
[Site "Warsaw"]
[Date "2025.04.30"]
[Round "13"]
[White "Fedoseev, Vladimir"]
[Black "Topalov, Veselin"]
[Result "1-0"]
[ECO "A45"]
[WhiteElo "2739"]
[BlackElo "2717"]
[Annotator "ChessBase"]
[PlyCount "65"]
[EventDate "2025.??.??"]
[EventType "blitz"]
[TimeControl "300+2"]

1. d4 {[%emt 0:00:03]} Nf6 {[%emt 0:00:01]} 2. Bg5 {[%emt 0:00:01]} e6 {[%emt 0:00:02]} 3. e4 {[%emt 0:00:03]} h6 {[%emt 0:00:01]} 4. Bxf6 {[%emt 0:00:01]} Qxf6 {[%emt 0:00:01]} 5. Nc3 {[%emt 0:00:02]} b6 {[%emt 0:00:03]} 6. e5 {[%emt 0:00:04]} ({RR} 6. Qd2 Bb7 7. a3 Nc6 8. O-O-O O-O-O 9. g3 g5 10. Bg2 h5 11. f3 Kb8 12. Kb1 Bg7 13. e5 Qh6 14. Ne4 f6 15. exf6 Bxf6 16. Ne2 h4 17. f4 gxf4 18. Nxf6 Qxf6 19. Nxf4 hxg3 20. hxg3 Rxh1 {Nakamura,H (2795)-Santos Latasa,J (2626) chess.com INT 2024 1-0 (64)}) 6... Qd8 {[%emt 0:00:04]} 7. a3 $146 {[%emt 0:00:06]} ({RR} 7. Qf3 Nc6 8. O-O-O Bb7 9. Bd3 Be7 10. Nge2 Qc8 11. Qg4 O-O 12. Ng3 f5 13. exf6 Bxf6 14. Nh5 Nb4 15. Be4 d5 16. Bg6 e5 17. Bf5 Qxf5 18. Qxf5 Bg5+ 19. Qxg5 hxg5 20. a3 Nc6 21. dxe5 d4 {Bellon Lopez,J (2404)-Dzagnidze,N (2550) Caleta 2011 0-1 (56)}) ({RR} 7. Nf3 Bb7 8. Bd3 Be7 9. Qe2 d5 10. exd6 cxd6 11. O-O-O Nd7 12. Kb1 Nf6 13. Bb5+ Kf8 14. Ba6 Qc8 15. Bxb7 Qxb7 16. Rhe1 d5 17. Ne5 Bd6 18. Qf3 b5 19. Ne2 Bxe5 20. dxe5 Ne4 21. Nd4 Kg8 {Mamedyarov,S (2722)-Ambartsumova,K (2418) chess.com INT 2024 1-0 (42)}) ({RR} 7. Qf3 Nc6 8. O-O-O Bb7 9. Nh3 Be7 10. Bd3 Bg5+ 11. Kb1 Qe7 12. Qg4 O-O-O 13. f4 f5 14. Qe2 Nxd4 15. Qe3 Bxg2 16. Rhg1 Bxh3 17. Qxd4 Kb8 18. Qa4 a5 19. Qc4 Rc8 20. Qc5 d5 21. exd6 cxd6 {Gallego Alcaraz,A (2381)-Guerrero Sierra,J (2275) Medellin 2010 1-0 (34)}) ({RR} 7. f4 Bb7 8. Nf3 Bb4 9. Bd3 c5 10. O-O Bxc3 11. bxc3 cxd4 12. cxd4 O-O 13. Ng5 f5 14. Nf3 Nc6 15. c3 Rc8 16. Rc1 Na5 17. Nd2 Rc7 18. Qe2 Qe7 19. c4 Rfc8 20. Rc3 Qb4 21. Rfc1 d5 {Donka,P (2225)-Magyar,O (2340) Hungary 1996 0-1 (45)}) 7... Bb7 {[%emt 0:00:02]} 8. f4 {[%emt 0:00:01]} d6 {[%emt 0:00:28]} 9. Nf3 {[%emt 0:00:08]} Nd7 {[%emt 0:00:03]} 10. Qe2 {[%emt 0:00:16]} g6 {[%emt 0:00:50]} 11. d5 {[%emt 0:00:19]} Qe7 {[%emt 0:00:13]} 12. Nb5 {[%emt 0:00:16]} Kd8 {[%emt 0:00:26]} 13. dxe6 {[%emt 0:00:07]} Qxe6 {[%emt 0:00:20]} 14. O-O-O {[%emt 0:00:07]} a6 {[%emt 0:00:25]} 15. Nc3 {[%emt 0:00:01]} Kc8 {[%emt 0:00:48]} 16. Nd4 {[%emt 0:01:38]} Qe8 {[%emt 0:00:15]} 17. e6 {[%emt 0:00:02]} fxe6 {[%emt 0:00:03]} 18. Nxe6 {[%emt 0:00:02]} Nf6 {[%emt 0:00:38]} 19. h4 {[%emt 0:00:12]} h5 {[%emt 0:00:24]} 20. Qc4 {[%emt 0:00:33]} c5 {[%emt 0:00:06]} 21. Re1 {[%emt 0:00:53]} d5 {[%emt 0:00:16]} 22. Qe2 {[%emt 0:00:15]} Bd6 {[%emt 0:00:05]} 23. b3 {[%emt 0:00:15]} d4 {[%emt 0:00:02]} 24. Na4 {[%emt 0:00:01]} Qc6 {[%emt 0:00:00]} 25. Qd3 {[%emt 0:00:04]} Ne4 {[%emt 0:00:03]} 26. Rxe4 {[%emt 0:00:02]} Qxe4 {[%emt 0:00:01]} 27. Nxb6+ {[%emt 0:00:02]} Kb8 {[%emt 0:00:05]} 28. Qxe4 {[%emt 0:00:03]} Bxe4 {[%emt 0:00:02]} 29. Nxa8 {[%emt 0:00:06]} Kxa8 {[%emt 0:00:03]} 30. Bxa6 {[%emt 0:00:02]} Bxg2 {[%emt 0:00:02]} 31. Rg1 {[%emt 0:00:01]} Bd5 {[%emt 0:00:06]} 32. Rxg6 {[%emt 0:00:01]} Re8 {[%emt 0:00:03]} 33. f5 {[%emt 0:00:04]} 1-0